fUSD/lending_fUSD_20240817
["ID","MTS","AMOUNT","RATE_DAILY","PERIOD"]
[335174360,1723933849218,-16932.38,0.00010995,2]
[335174361,1723933849227,-16932.38,0.00010995,2]
[335174362,1723933849237,-16932.38,0.00010995,2]
[335174363,1723933849246,-16932.38,0.00010995,2]
[335174364,1723933849255,-16932.38784866,0.00010995,2]
[335174365,1723933849264,-9304.07,0.00010995,2]
[335174366,1723933849274,-9304.07,0.00010995,2]
[335174367,1723933849283,-6834.79,0.00010995,2]
[335174368,1723933849293,-6834.79,0.00010995,2]
[335174369,1723933849303,-6834.79,0.00010995,2]
[335174370,1723933849312,-6834.79,0.00010995,2]
[335174371,1723933849321,-6834.79,0.00010995,2]
[335174372,1723933849331,-6834.79,0.00010995,2]
[335174373,1723933849340,-6834.79,0.00010995,2]
[335174374,1723933849349,-6834.79,0.00010995,2]
[335174375,1723933849358,-5697.62,0.00010995,2]
[335174376,1723933849366,-6834.79,0.00010995,2]
[335174377,1723933849376,-5697.62,0.00010995,2]
[335174378,1723933849385,-6834.79,0.00010995,2]
[335174379,1723933849394,-5697.62,0.00010995,2]
[335174380,1723933849407,-6834.79,0.00010995,2]
[335174381,1723933849416,-5697.62,0.00010995,2]
[335174382,1723933849426,-6834.79,0.00010995,2]
[335174383,1723933849436,-5697.62,0.00010995,2]
[335174384,1723933849446,-6834.79,0.00010995,2]
[335174385,1723933849455,-6834.79,0.00010995,2]
[335174386,1723933849464,-5697.62,0.00010995,2]
[335174387,1723933849473,-6834.79,0.00010995,2]
[335174388,1723933849483,-4455.89,0.00010995,2]
[335174389,1723933849492,-5697.62,0.00010995,2]
[335174390,1723933849501,-1930.61631331,0.00010995,2]
[335174391,1723933849771,-4904.24252196,0.00010995,2]
[335174392,1723933849915,-4455.89,0.00010995,2]
[335174393,1723933849931,-5697.62,0.00010995,2]
[335174394,1723933849941,-5697.62,0.00010995,2]
[335174395,1723933849951,-5697.62,0.00010995,2]
[335174396,1723933849959,-5697.62,0.00010995,2]
[335174397,1723933849968,-5697.62,0.00010995,2]
[335174398,1723933849977,-5697.62,0.00010995,2]
[335174399,1723933849986,-5697.62,0.00010995,2]
[335174400,1723933849995,-5697.62,0.00010995,2]
[335174401,1723933850004,-5697.70520712,0.00010995,2]
[335174402,1723933850013,-5515.11,0.00010995,2]
[335174403,1723933850022,-5515.11,0.00010995,2]
[335174404,1723933850031,-6035.7,0.00010995,2]
[335174405,1723933850040,-5515.11,0.00010995,2]
[335174406,1723933850049,-6035.7,0.00010995,2]
[335174407,1723933850059,-5515.11,0.00010995,2]
[335174408,1723933850068,-5515.11,0.00010995,2]
[335174409,1723933850077,-5515.11,0.00010995,2]
[335174410,1723933850087,-5515.11,0.00010995,2]
[335174411,1723933850096,-5515.11,0.00010995,2]
[335174412,1723933850105,-8882.94,0.00010995,2]
[335174413,1723933850114,-5515.11,0.00010995,2]
[335174414,1723933850123,-8882.94,0.00010995,2]
[335174415,1723933850132,-5515.11,0.00010995,2]
[335174416,1723933850143,-5515.11,0.00010995,2]
[335174417,1723933850153,-5515.11,0.00010995,2]
[335174418,1723933850162,-5515.11,0.00010995,2]
[335174419,1723933850171,-5515.11,0.00010995,2]
[335174420,1723933850180,-5515.11,0.00010995,2]
[335174421,1723933850189,-5515.20020458,0.00010995,2]
[335174422,1723933850199,-5248.07,0.00010995,2]
[335174423,1723933850209,-5248.07,0.00010995,2]
[335174424,1723933850219,-5248.07,0.00010995,2]
[335174425,1723933850229,-5248.07,0.00010995,2]
[335174426,1723933850238,-5360.61,0.00010995,2]
[335174427,1723933850247,-5248.07,0.00010995,2]
[335174428,1723933850257,-5360.61,0.00010995,2]
[335174429,1723933850266,-5248.07,0.00010995,2]
[335174430,1723933850277,-5360.61,0.00010995,2]
[335174431,1723933850286,-5248.07,0.00010995,2]
[335174432,1723933850298,-5360.61,0.00010995,2]
[335174433,1723933850307,-5248.07,0.00010995,2]
[335174434,1723933850317,-5360.61,0.00010995,2]
[335174435,1723933850327,-5248.07,0.00010995,2]
[335174436,1723933850335,-5360.61,0.00010995,2]
[335174437,1723933850344,-5248.07,0.00010995,2]
[335174438,1723933850353,-5360.61,0.00010995,2]
[335174439,1723933850362,-5248.07,0.00010995,2]
[335174440,1723933850371,-5248.07,0.00010995,2]
[335174441,1723933850380,-5360.61,0.00010995,2]
[335174442,1723933850390,-5360.61,0.00010995,2]
[335174443,1723933850404,-5248.07,0.00010995,2]
[335174444,1723933850414,-5360.61,0.00010995,2]
[335174445,1723933850425,-5360.61,0.00010995,2]
[335174446,1723933850441,-5360.61,0.00010995,2]
[335174447,1723933850450,-5360.61,0.00010995,2]
[335174448,1723933850459,-5248.07,0.00010995,2]
[335174449,1723933850468,-5360.61,0.00010995,2]
[335174450,1723933850478,-5248.07,0.00010995,2]
[335174451,1723933850487,-5360.61,0.00010995,2]
[335174452,1723933850496,-5248.19,0.00010995,2]
[335174453,1723933850505,-5360.67,0.00010995,2]
[335174454,1723933850514,-6669.51,0.00010995,2]
[335174455,1723933850523,-6669.51,0.00010995,2]
[335174456,1723933850532,-6669.51,0.00010995,2]
[335174457,1723933850541,-6669.51,0.00010995,2]
[335174458,1723933850550,-6669.51,0.00010995,2]
[335174459,1723933850559,-2810.58,0.00010995,2]
[335174460,1723933850568,-6669.51,0.00010995,2]
[335174461,1723933850576,-2810.58,0.00010995,2]
[335174462,1723933850585,-6669.51,0.00010995,2]
[335174463,1723933850595,-6669.51,0.00010995,2]
[335174464,1723933850604,-6669.51,0.00010995,2]
[335174465,1723933850613,-3412.19300556,0.00010995,2]
[335174466,1723933850626,-504.152,0.00010995,2]
[335174467,1723933850637,-2753.16499444,0.00010995,2]
[335174468,1723933850647,-702.22702642,0.00010995,2]
[335174469,1723933850657,-253.44497898,0.00010995,2]
[335174470,1723933850668,-345.91147168,0.00010995,2]
[335174471,1723933850814,-584.26408922,0.00010995,2]
[335174472,1723933850825,-3804.28083584,0.00010995,2]
[335174473,1723933850835,-884.16644664,0.00010995,2]
[335174474,1723933850847,-95.21515122,0.00010995,2]
[335174475,1723933850856,-190.02697824,0.00010995,2]
[335174476,1723933851155,-810.0,0.00010846,2]
[335174477,1723933851165,-6479.48302176,0.00010995,2]
[335174478,1723933851174,-6669.51,0.00010995,2]
[335174479,1723933851183,-6669.51,0.00010995,2]
[335174480,1723933851194,-6669.51,0.00010995,2]
[335174481,1723933851203,-6669.53431642,0.00010995,2]
[335174482,1723933851212,-2541.86,0.00010995,2]
[335174483,1723933851222,-2541.86,0.00010995,2]
[335174484,1723933851232,-4291.93,0.00010995,2]
[335174485,1723933851241,-4291.93,0.00010995,2]
[335174486,1723933851250,-4291.93,0.00010995,2]
[335174487,1723933851259,-4291.93,0.00010995,2]
[335174488,1723933851268,-4291.93,0.00010995,2]
[335174489,1723933851277,-4291.93,0.00010995,2]
[335174490,1723933851286,-4291.93,0.00010995,2]
[335174491,1723933851297,-4291.93,0.00010995,2]
[335174492,1723933851306,-4291.93,0.00010995,2]
[335174493,1723933851316,-4291.93,0.00010995,2]
[335174494,1723933851325,-4291.93,0.00010995,2]
[335174495,1723933851334,-4291.93,0.00010995,2]
[335174496,1723933851344,-4291.93,0.00010995,2]
[335174497,1723933851354,-4291.93,0.00010995,2]
[335174498,1723933851364,-4291.93,0.00010995,2]
[335174499,1723933851373,-4292.07144732,0.00010995,2]
[335174500,1723933851382,-4656.36,0.00010995,2]
[335174501,1723933851392,-4656.36,0.00010995,2]
[335174502,1723933851404,-950.47,0.00010995,2]
[335174503,1723933851413,-950.47,0.00010995,2]
[335174504,1723933851422,-4766.77,0.00010995,2]
[335174505,1723933851431,-4766.77,0.00010995,2]
[335174506,1723933851440,-4766.77,0.00010995,2]
[335174507,1723933851450,-4766.77,0.00010995,2]
[335174508,1723933851459,-4766.77,0.00010995,2]
[335174509,1723933851468,-4766.77,0.00010995,2]
[335174510,1723933851478,-4766.77,0.00010995,2]
[335174511,1723933851489,-311.02821851,0.00010995,2]
[335174512,1723933851500,-327.12129972,0.00010995,2]
[335174513,1723933851511,-1933.42853734,0.00010995,2]
[335174514,1723933851522,-2195.19194443,0.00010995,2]
[335174515,1723933851531,-4766.77,0.00010995,2]
[335174516,1723933851540,-4766.77,0.00010995,2]
[335174517,1723933851549,-4766.77,0.00010995,2]
[335174518,1723933851558,-4766.77,0.00010995,2]
[335174519,1723933851567,-4766.77,0.00010995,2]
[335174520,1723933851577,-4766.77,0.00010995,2]
[335174521,1723933851586,-4766.77,0.00010995,2]
[335174522,1723933851595,-4766.84246476,0.00010995,2]
[335174523,1723933851604,-9865.33,0.00010995,2]
[335174524,1723933851613,-6754.00530082,0.00010995,2]
[335174525,1723933852506,-3111.32469918,0.00010995,2]
[335174526,1723933852515,-1225.63297589,0.00010995,2]
[335174527,1723933852530,-3383.00529059,0.00010995,2]
[335174528,1723933852547,-658.14173352,0.00010995,2]
[335174529,1723933852556,-5266.78,0.00010995,2]
[335174530,1723933852566,-3325.80181368,0.00010995,2]
[335174531,1723933852579,-470.39356303,0.00010995,2]
[335174532,1723933852592,-360.80937151,0.00010995,2]
[335174533,1723933852604,-1109.77525178,0.00010995,2]
[335174534,1723933852613,-277.84274793,0.00010995,2]
[335174535,1723933852624,-4988.93725207,0.00010995,2]
[335174536,1723933852633,-3523.83,0.00010995,2]
[335174537,1723933852643,-5266.78,0.00010995,2]
[335174538,1723933852653,-3523.83,0.00010995,2]
[335174539,1723933852662,-5266.78,0.00010995,2]
[335174540,1723933852673,-5266.78,0.00010995,2]
[335174541,1723933852683,-3523.83,0.00010995,2]
[335174542,1723933852692,-5266.78,0.00010995,2]
[335174543,1723933852703,-3523.83,0.00010995,2]
[335174544,1723933852712,-5266.78,0.00010995,2]
[335174545,1723933852721,-3523.83,0.00010995,2]
[335174546,1723933852732,-5266.78,0.00010995,2]
[335174547,1723933852743,-3523.83,0.00010995,2]
[335174548,1723933852753,-5266.78,0.00010995,2]
[335174549,1723933852764,-3523.83,0.00010995,2]
[335174550,1723933852774,-5266.78,0.00010995,2]
[335174551,1723933852784,-3523.83,0.00010995,2]
[335174552,1723933852793,-5266.78,0.00010995,2]
[335174553,1723933852803,-3523.83,0.00010995,2]
[335174554,1723933852812,-3523.83,0.00010995,2]
[335174555,1723933852821,-5266.78,0.00010995,2]
[335174556,1723933852830,-5266.78,0.00010995,2]
[335174557,1723933852840,-3523.83,0.00010995,2]
[335174558,1723933852849,-3488.45063547,0.00010995,2]
[335174559,1723933852860,-384.34999965,0.00010995,2]
[335174560,1723933852882,-1394.00142532,0.00010995,2]
[335174561,1723933852891,-3523.83,0.00010995,2]
[335174562,1723933852901,-3523.83,0.00010995,2]
[335174563,1723933852910,-3161.42402456,0.00010995,2]
[335174564,1723933852921,-362.40597544,0.00010995,2]
[335174565,1723933852931,-881.53315596,0.00010995,2]
[335174566,1723933853180,-556.794,0.00010846,2]
[335174567,1723933853190,-174.90327437,0.00010893,2]
[335174568,1723933853199,-1238.47115502,0.00010995,2]
[335174569,1723933853211,-1259.0643412,0.00010995,2]
[335174570,1723933853222,-144.76134782,0.00010995,2]
[335174571,1723933853232,-3523.8670978,0.00010995,2]
[335174572,1723933853242,-6833.97,0.00010995,2]
[335174573,1723933853252,-6423.47140919,0.00010995,2]
[335174574,1723933853263,-410.49859081,0.00010995,2]
[335174575,1723933853272,-472.07790919,0.00010995,2]
[335174576,1723933853283,-1724.29209081,0.00010995,2]
[335174577,1723933853292,-74.99994698,0.00010995,2]
[335174578,1723933853307,-1031.19781314,0.00010995,2]
[335174579,1723933853318,-620.1702649,0.00010995,2]
[335174580,1723933853329,-470.00197498,0.00010995,2]
[335174581,1723933853338,-351.26229335,0.00010995,2]
[335174582,1723933853353,-660.32229313,0.00010995,2]
[335174583,1723933853365,-1343.99298,0.00010995,2]
[335174584,1723933853376,-684.43063996,0.00010995,2]
[335174585,1723933853387,-5286.41179356,0.00010995,2]
[335174586,1723933853397,-2196.37,0.00010995,2]
[335174587,1723933853411,-2196.37,0.00010995,2]
[335174588,1723933853420,-6437.57410484,0.00010995,2]
[335174589,1723933853434,-737.88129264,0.00010995,2]
[335174590,1723933853449,-547.84176427,0.00010995,2]
[335174591,1723933860398,255.19609183,9.962e-05,2]
[335174592,1723933863723,160.36309933,9.962e-05,2]
[335174593,1723933867780,155.18715259,9.962e-05,2]
[335174594,1723933871406,230.29866423,9.962e-05,2]
[335174595,1723933878200,493.44306366,9.962e-05,2]
[335174596,1723933889602,196.56,7.319e-05,2]
[335174601,1723934070939,186.68,9.926e-05,2]
[335174603,1723934076300,363.05691439,8.871e-05,2]
[335174604,1723934254888,604.93,8.219e-05,2]
[335174605,1723934326025,260.76,9.868e-05,2]
[335174606,1723934381922,196.56,7.11e-05,2]
[335174609,1723934409378,509.58,9.849e-05,2]
[335174610,1723934506346,521.2,9.741e-05,2]
[335174611,1723934548239,186.68,9.836e-05,2]
[335174612,1723934592185,22762.92,9.813e-05,2]
[335174613,1723934643879,211.47,9.824e-05,2]
[335174614,1723934703561,250.0,9.818e-05,2]
[335174616,1723934710459,197.1386879,9.943e-05,2]
[335174622,1723934750306,606.73,8.219e-05,2]
[335174628,1723934791256,791.39,9.827e-05,2]
[335174629,1723934805621,150.0,9.789e-05,2]
[335174630,1723934805930,150.0,9.97e-05,2]
[335174631,1723934829366,2841.12816254,9.943e-05,2]
[335174638,1723934845677,779.18,9.876e-05,2]
[335174644,1723934918439,196.56,7.073e-05,2]
[335174646,1723934988795,439.52,9.806e-05,2]
[335174653,1723935032255,-550.0,0.0001,2]
[335174654,1723935032265,-150.0,0.00010152,2]
[335174655,1723935032274,-150.0,0.00010333,2]
[335174656,1723935032283,-175.69822379,0.00010414,2]
[335174657,1723935032292,-606.73,0.00010467,2]
[335174658,1723935032302,-150.0,0.00010514,2]
[335174659,1723935032311,-3033.53018522,0.00010566,2]
[335174660,1723935032508,-4482.2764,0.00010613,2]
[335174661,1723935032518,-150.0,0.00010695,2]
[335174662,1723935032528,-788.7556,0.00010698,2]
[335174663,1723935032537,-261.35,0.00010698,2]
[335174664,1723935032547,-1000.0,0.000107,2]
[335174665,1723935032556,-150.99,0.000107,2]
[335174666,1723935032566,-1500.0,0.00010724,2]
[335174667,1723935032575,-469.81,0.00010724,2]
[335174668,1723935032585,-2649.14,0.00010724,2]
[335174669,1723935032595,-1264.51444797,0.00010759,2]
[335174670,1723935032604,-29636.69799963,0.00010785,2]
[335174671,1723935032613,-150.99,0.00010786,2]
[335174672,1723935032622,-150.0,0.00010786,2]
[335174673,1723935032633,-6096.13,0.00010787,2]
[335174675,1723935032642,-499.99,0.00010787,2]
[335174677,1723935032651,-3106.9302,0.00010788,2]
[335174679,1723935032661,-6534.2505,0.00010788,2]
[335174681,1723935032670,-1057.9973,0.00010788,2]
[335174683,1723935032679,-1563.2312,0.00010788,2]
[335174685,1723935032688,-1289.7013,0.00010788,2]
[335174687,1723935032699,-686.7058,0.00010788,2]
[335174688,1723935032708,-606.4297,0.00010788,2]
[335174689,1723935032718,-334.9541,0.00010788,2]
[335174690,1723935032727,-7079.40047258,0.00010793,2]
[335174691,1723935032744,-420.59952742,0.00010793,2]
[335174692,1723935032754,-366.17430399,0.00010793,2]
[335174693,1723935032763,-179.37698944,0.00010794,2]
[335174694,1723935032773,-286.94285339,0.00010794,2]
[335174695,1723935032782,-7357.32991156,0.00010795,2]
[335174696,1723935032793,-266.95294903,0.00010795,2]
[335174697,1723935032814,-541.55717634,0.00010795,2]
[335174698,1723935032824,-2818.399724,0.00010795,2]
[335174699,1723935032835,-3479.78997689,0.00010795,2]
[335174700,1723935032846,-2066.72528739,0.00010795,2]
[335174701,1723935032857,-498.04974577,0.00010795,2]
[335174702,1723935032868,-1256.6156,0.00010795,2]
[335174703,1723935032879,-6935.62712902,0.00010795,2]
[335174704,1723935032888,-6718.77865551,0.00010795,2]
[335174705,1723935032901,-41313.49718545,0.00010795,2]
[335174706,1723935032917,-1000.5000036,0.00010795,2]
[335174711,1723935038339,-262.49540525,0.00010795,2]
[335174712,1723935038353,-403.59957179,0.00010795,2]
[335174713,1723935038379,-1042.82955653,0.00010795,2]
[335174714,1723935038390,-1780.0858619,0.00010795,2]
[335174715,1723935038402,-2520.03595739,0.00010795,2]
[335174716,1723935038931,-568.94985213,0.00010795,2]
[335174717,1723935038943,-453.30570109,0.00010795,2]
[335174718,1723935038954,-622.21983407,0.00010795,2]
[335174719,1723935038965,-2919.9,0.00010795,2]
[335174720,1723935038977,-575.94544963,0.00010795,2]
[335174721,1723935038988,-12070.76033853,0.00010795,2]
[335174722,1723935038999,-20002.1778,0.00010795,2]
[335174723,1723935039011,-7744.91882713,0.00010795,2]
[335174724,1723935039020,-174.90327436,0.00010796,2]
[335174725,1723935039029,-449.0828,0.00010798,2]
[335174726,1723935039039,-500.0,0.00010798,2]
[335174727,1723935039048,-150.0,0.00010805,2]
[335174728,1723935039057,-1500.0,0.0001081,2]
[335174729,1723935039066,-150.0,0.00010836,2]
[335174730,1723935039075,-366.17430398,0.00010847,2]
[335174731,1723935039085,-1500.0,0.00010861,2]
[335174732,1723935039094,-1500.0,0.0001087,2]
[335174733,1723935039103,-274.4076759,0.00010877,2]
[335174734,1723935039112,-840.85981544,0.00010883,2]
[335174735,1723935039121,-840.85981544,0.00010884,2]
[335174736,1723935039131,-840.85981544,0.00010885,2]
[335174737,1723935039140,-235.75858558,0.00010888,2]
[335174738,1723935039150,-449.2549,0.0001089,2]
[335174739,1723935039159,-155.0,0.0001089,2]
[335174740,1723935039169,-155.0,0.0001089,2]
[335174741,1723935039178,-255.25996316,0.0001089,2]
[335174742,1723935039187,-150.0,0.00010891,2]
[335174743,1723935039196,-749.72,0.00010891,2]
[335174744,1723935039205,-6054.78,0.00010891,2]
[335174745,1723935039214,-1098.19,0.00010891,2]
[335174747,1723935039223,-868.89,0.00010891,2]
[335174749,1723935039232,-1627.45,0.00010891,2]
[335174750,1723935039241,-2011.37036393,0.00010891,2]
[335174752,1723935039252,-872.70324396,0.00010891,2]
[335174754,1723935039263,-282.29427162,0.00010891,2]
[335174757,1723935039283,-754.9956438,0.00010891,2]
[335174759,1723935039294,-960.84647669,0.00010891,2]
[335174760,1723935039303,-698.81661367,0.00010891,2]
[335174761,1723935039326,-776.18302584,0.00010891,2]
[335174762,1723935039337,-570.55999995,0.00010891,2]
[335174763,1723935039347,-5391.42561149,0.00010891,2]
[335174764,1723935039362,-5049.79999996,0.00010891,2]
[335174783,1723935040404,-377.63072068,0.00010891,2]
[335174784,1723935040441,-39212.85223734,0.00010891,2]
[335174785,1723935040476,-1611.89179107,0.00010891,2]
[335174786,1723935040486,-995.30821672,0.00010891,2]
[335174787,1723935040508,-539.06283141,0.00010891,2]
[335174788,1723935040542,-385.66261705,0.00010891,2]
[335174789,1723935040580,-656.14,0.00010891,2]
[335174790,1723935040755,-161.55633482,0.00010891,2]
[335174791,1723935040764,-444.88275206,0.00010891,2]
[335174792,1723935040778,-1652.83724794,0.00010891,2]
[335174793,1723935040790,-500.0,0.00010891,2]
[335174794,1723935040799,-965.36275204,0.00010891,2]
[335174795,1723935040812,-16324.39724796,0.00010891,2]
[335174796,1723935040823,-500.0,0.00010891,2]
[335174797,1723935040834,-500.0,0.00010891,2]
[335174798,1723935040845,-6369.41,0.00010891,2]
[335174799,1723935040858,-500.0,0.00010891,2]
[335174800,1723935040868,-500.0,0.00010891,2]
[335174801,1723935040879,-255.25996316,0.00010891,2]
[335174802,1723935040888,-500.0,0.00010892,2]
[335174803,1723935040898,-500.0,0.00010892,2]
[335174804,1723935040908,-2313.73,0.00010892,2]
[335174805,1723935040919,-500.0,0.00010892,2]
[335174806,1723935040930,-9481.94,0.00010892,2]
[335174807,1723935040939,-748.99,0.00010892,2]
[335174808,1723935040950,-607.80559253,0.00010892,2]
[335174809,1723935040960,-4188.7,0.00010892,2]
[335174810,1723935040969,-500.0,0.00010892,2]
[335174811,1723935040979,-2429.26,0.00010892,2]
[335174812,1723935040989,-2750.42,0.00010892,2]
[335174813,1723935040999,-8765.25,0.00010892,2]
[335174814,1723935041009,-6315.79,0.00010892,2]
[335174815,1723935041019,-500.0,0.00010892,2]
[335174816,1723935041028,-781.42,0.00010892,2]
[335174817,1723935041037,-439.03678783,0.00010892,2]
[335174818,1723935041048,-4275.29,0.00010892,2]
[335174819,1723935041057,-795.89,0.00010892,2]
[335174820,1723935041066,-500.0,0.00010892,2]
[335174821,1723935041076,-3156.26,0.00010892,2]
[335174822,1723935041085,-500.0,0.00010892,2]
[335174823,1723935041094,-6292.08,0.00010892,2]
[335174824,1723935041103,-500.0,0.00010892,2]
[335174825,1723935041113,-500.0,0.00010892,2]
[335174826,1723935041124,-1990.83,0.00010892,2]
[335174827,1723935041133,-500.0,0.00010892,2]
[335174828,1723935041143,-500.0,0.00010892,2]
[335174829,1723935041152,-3298.26,0.00010892,2]
[335174830,1723935041161,-500.0,0.00010892,2]
[335174831,1723935041170,-673.25,0.00010892,2]
[335174832,1723935041179,-1800.48,0.00010892,2]
[335174833,1723935041188,-749.72,0.00010892,2]
[335174834,1723935041198,-749.72,0.00010892,2]
[335174835,1723935041207,-6987.95,0.00010892,2]
[335174836,1723935041216,-500.0,0.00010892,2]
[335174837,1723935041225,-500.0,0.00010892,2]
[335174838,1723935041235,-500.0,0.00010892,2]
[335174839,1723935041244,-4840.73,0.00010892,2]
[335174840,1723935041253,-6054.78,0.00010892,2]
[335174841,1723935041263,-6054.78,0.00010892,2]
[335174842,1723935041272,-500.0,0.00010892,2]
[335174843,1723935041281,-500.0,0.00010892,2]
[335174844,1723935041291,-500.0,0.00010892,2]
[335174845,1723935041300,-500.0,0.00010892,2]
[335174846,1723935041309,-515.40625582,0.00010892,2]
[335174847,1723935041319,-1098.19,0.00010892,2]
[335174848,1723935041328,-1098.19,0.00010892,2]
[335174849,1723935041337,-500.0,0.00010892,2]
[335174850,1723935041347,-500.0,0.00010892,2]
[335174851,1723935041360,-500.0,0.00010892,2]
[335174852,1723935041369,-532.11551485,0.00010892,2]
[335174853,1723935041378,-868.89,0.00010892,2]
[335174854,1723935041388,-868.89,0.00010892,2]
[335174855,1723935041397,-11330.89,0.00010892,2]
[335174856,1723935041406,-500.0,0.00010892,2]
[335174857,1723935041416,-744.7,0.00010892,2]
[335174858,1723935041426,-632.78,0.00010892,2]
[335174859,1723935041437,-1627.45,0.00010892,2]
[335174860,1723935041446,-1627.45,0.00010892,2]
[335174861,1723935041456,-21300.52,0.00010892,2]
[335174862,1723935041465,-500.0,0.00010892,2]
[335174863,1723935041476,-4882.21,0.00010892,2]
[335174864,1723935041485,-4882.21,0.00010892,2]
[335174865,1723935041495,-506.09292845,0.00010892,2]
[335174866,1723935041504,-598.06818889,0.00010892,2]
[335174867,1723935041513,-53689.16,0.00010892,2]
[335174868,1723935041523,-53689.16,0.00010892,2]
[335174869,1723935041532,-500.0,0.00010892,2]
[335174870,1723935041541,-500.0,0.00010892,2]
[335174871,1723935041550,-10641.17,0.00010892,2]
[335174872,1723935041559,-4695.29,0.00010892,2]
[335174873,1723935041568,-2737.73,0.00010892,2]
[335174874,1723935041577,-500.0,0.00010892,2]
[335174875,1723935041586,-500.0,0.00010892,2]
[335174876,1723935041596,-2097.72,0.00010892,2]
[335174877,1723935041606,-5722.24,0.00010892,2]
[335174878,1723935041616,-2097.72,0.00010892,2]
[335174879,1723935041626,-500.0,0.00010892,2]
[335174880,1723935041636,-500.0,0.00010892,2]
[335174881,1723935041645,-500.0,0.00010892,2]
[335174882,1723935041654,-500.0,0.00010892,2]
[335174883,1723935041663,-17289.76,0.00010892,2]
[335174884,1723935041673,-17289.76,0.00010892,2]
[335174885,1723935041682,-500.0,0.00010892,2]
[335174886,1723935041691,-502.99639818,0.00010892,2]
[335174887,1723935041700,-500.0,0.00010892,2]
[335174888,1723935041709,-500.0,0.00010892,2]
[335174889,1723935041719,-500.0,0.00010892,2]
[335174890,1723935041729,-153.94003966,0.00010892,2]
[335174891,1723935041738,-500.0,0.00010892,2]
[335174892,1723935041747,-500.0,0.00010892,2]
[335174893,1723935041757,-469.2602825,0.00010892,2]
[335174894,1723935041767,-500.0,0.00010892,2]
[335174895,1723935041777,-5662.62,0.00010892,2]
[335174896,1723935041786,-500.0,0.00010892,2]
[335174897,1723935041795,-500.0,0.00010892,2]
[335174898,1723935041805,-6369.41,0.00010892,2]
[335174899,1723935041814,-6369.41,0.00010892,2]
[335174900,1723935041823,-500.0,0.00010892,2]
[335174901,1723935041832,-500.0,0.00010892,2]
[335174902,1723935041842,-500.0,0.00010892,2]
[335174903,1723935041851,-255.25996316,0.00010892,2]
[335174904,1723935041860,-4534.84459588,0.00010893,2]
[335174905,1723935041870,-212.55946011,0.00010893,2]
[335174906,1723935041879,-500.0,0.00010893,2]
[335174907,1723935041889,-500.0,0.00010893,2]
[335174908,1723935041898,-1285.89,0.00010893,2]
[335174909,1723935041908,-500.0,0.00010893,2]
[335174910,1723935041917,-596.31,0.00010893,2]
[335174911,1723935041927,-500.0,0.00010893,2]
[335174912,1723935041936,-581.27,0.00010893,2]
[335174913,1723935041946,-500.0,0.00010893,2]
[335174914,1723935041955,-500.0,0.00010893,2]
[335174915,1723935041964,-500.0,0.00010893,2]
[335174916,1723935041974,-729.69,0.00010893,2]
[335174917,1723935041983,-500.0,0.00010893,2]
[335174918,1723935041992,-500.0,0.00010893,2]
[335174919,1723935042001,-570.42,0.00010893,2]
[335174920,1723935042010,-590.23,0.00010893,2]
[335174921,1723935042019,-557.72,0.00010893,2]
[335174922,1723935042027,-500.0,0.00010893,2]
[335174923,1723935042037,-500.0,0.00010893,2]
[335174924,1723935042047,-500.0,0.00010893,2]
[335174925,1723935042057,-807.89,0.00010893,2]
[335174926,1723935042066,-500.0,0.00010893,2]
[335174927,1723935042076,-150.0,0.00010893,2]
[335174928,1723935042085,-500.0,0.00010893,2]
[335174929,1723935042094,-505.08781299,0.00010893,2]
[335174930,1723935042103,-500.0,0.00010893,2]
[335174931,1723935042113,-500.0,0.00010893,2]